bitfinex/quotes_BTCUSD_20240101
["timestamp","ask_amount","ask_price","bid_price","bid_amount"]
[1704127605109,0.81895168,42810.0,42809.0,0.49204685]
[1704127605529,0.81995168,42810.0,42809.0,0.49304685]
[1704127607718,0.78995168,42810.0,42809.0,0.49304685]
[1704127607917,1.55698191,42810.0,42809.0,0.32976]
[1704127608156,0.19663312,42805.0,42804.0,0.05772]
[1704127608368,0.19663312,42802.0,42801.0,0.004]
[1704127608581,1.76653388,42802.0,42801.0,0.004]
[1704127609451,1.71074108,42802.0,42801.0,0.004]
[1704127609682,1.76753388,42802.0,42801.0,0.004]
[1704127609901,1.94710324,42802.0,42801.0,0.004]
[1704127610130,1.94910324,42802.0,42801.0,0.004]
[1704127610346,1.87002359,42802.0,42801.0,0.004]
[1704127611668,1.88002359,42802.0,42801.0,0.004]
[1704127612331,0.19663312,42797.0,42796.0,0.02882]
[1704127612542,0.77620708,42797.0,42796.0,0.02882]
[1704127612776,1.69756423,42797.0,42796.0,0.02882]
[1704127613007,1.78117234,42797.0,42796.0,0.02882]
[1704127613476,1.75627497,42797.0,42796.0,0.02882]
[1704127614404,1.70056423,42797.0,42796.0,0.02882]
[1704127614631,1.72385108,42797.0,42796.0,0.02882]
[1704127614836,1.8883866,42797.0,42796.0,0.02882]
[1704127615054,1.86809975,42797.0,42796.0,0.02882]
[1704127615281,0.779392,42797.0,42796.0,0.02882]
[1704127615491,0.779392,42797.0,42796.0,0.22547373]
[1704127615932,0.709392,42797.0,42796.0,0.22547373]
[1704127616364,0.703392,42797.0,42796.0,0.22547373]
[1704127616817,0.720392,42797.0,42796.0,0.22547373]
[1704127617059,0.722392,42797.0,42796.0,0.22547373]
[1704127617287,0.28278087,42797.0,42796.0,0.22547373]
[1704127617518,0.52003287,42797.0,42796.0,0.22547373]
[1704127617766,0.52003287,42797.0,42796.0,0.13218688]
[1704127617977,0.82003287,42797.0,42796.0,0.13218688]
[1704127618181,0.82103287,42797.0,42796.0,0.13318688]
[1704127618388,0.81903287,42797.0,42796.0,0.13318688]
[1704127618591,0.82003287,42797.0,42796.0,0.13418688]
[1704127619661,0.82003287,42797.0,42796.0,0.22747373]
[1704127621047,0.82003287,42797.0,42796.0,0.27379373]
[1704127621279,0.82003287,42797.0,42796.0,0.22747373]
[1704127621550,0.82003287,42797.0,42796.0,0.27307373]
[1704127621551,0.32971087,42797.0,42796.0,0.27307373]
[1704127621781,0.02971087,42797.0,42796.0,0.30319373]
[1704127622006,0.02971087,42797.0,42796.0,0.62713084]
[1704127622228,0.02838455,42802.0,42801.0,0.10336688]
[1704127622440,0.093561,42811.0,42810.0,0.10336688]
[1704127622441,0.560739,42811.0,42810.0,0.10336688]
[1704127622698,0.560739,42811.0,42810.0,0.19665373]
[1704127622920,0.58947007,42811.0,42810.0,0.19665373]
[1704127623132,0.58947007,42811.0,42810.0,0.10336688]
[1704127623770,0.61275692,42811.0,42810.0,0.10336688]
[1704127623979,0.58947007,42811.0,42810.0,0.10336688]
[1704127624594,0.88947007,42811.0,42810.0,0.10336688]
[1704127624791,0.91247007,42811.0,42810.0,0.10336688]
[1704127625432,0.89247007,42811.0,42810.0,0.10436688]
[1704127625638,0.42529207,42811.0,42810.0,0.15776688]
[1704127625852,0.42529207,42811.0,42810.0,0.10436688]
[1704127627365,0.42529207,42811.0,42810.0,0.10536688]
[1704127627580,0.42829207,42811.0,42810.0,0.19865373]
[1704127628861,0.89546107,42811.0,42810.0,0.19865373]
[1704127633236,0.12829207,42811.0,42810.0,0.26801373]
[1704127633663,0.03473107,42811.0,42810.0,0.26801373]
[1704127633865,0.03473107,42811.0,42810.0,0.53291373]
[1704127634083,0.03173107,42811.0,42810.0,0.53191373]
[1704127634526,0.004,42811.0,42810.0,1.06513084]
[1704127634748,0.004,42811.0,42810.0,1.20517084]
[1704127634962,0.003,42811.0,42810.0,1.20517084]
[1704127635184,0.467094,42818.0,42817.0,0.10336688]
[1704127635425,0.767094,42818.0,42817.0,0.19665373]
[1704127635654,0.79582876,42818.0,42817.0,0.19665373]
[1704127636326,0.79582876,42818.0,42817.0,0.10336688]
[1704127636822,0.80082876,42818.0,42817.0,0.10436688]
[1704127637046,0.82411561,42818.0,42817.0,0.001]
[1704127637268,0.84711561,42818.0,42817.0,0.071]
[1704127637494,0.84711561,42818.0,42817.0,0.2518]
[1704127637495,0.85211561,42818.0,42817.0,0.2518]
[1704127637715,0.85211561,42818.0,42817.0,0.35516688]
[1704127637963,0.85211561,42818.0,42817.0,0.2518]
[1704127638191,0.85211561,42818.0,42817.0,0.002]
[1704127638192,1.31920961,42818.0,42817.0,0.002]
[1704127638420,1.55242672,42818.0,42817.0,0.002]
[1704127640653,1.74905984,42818.0,42817.0,0.002]
[1704127642243,1.55242672,42818.0,42817.0,0.002]
[1704127642465,1.31920961,42818.0,42817.0,0.002]
[1704127644676,0.85211561,42818.0,42817.0,0.10536688]
[1704127644925,0.52911561,42818.0,42817.0,0.10536688]
[1704127646675,0.36202161,42818.0,42817.0,0.10536688]
[1704127647761,0.06202161,42818.0,42817.0,0.10536688]
[1704127648694,0.03873476,42818.0,42817.0,0.10536688]
[1704127648926,0.06202161,42818.0,42817.0,0.10536688]
[1704127651575,0.52911461,42818.0,42817.0,0.10536688]
[1704127651780,0.82911461,42818.0,42817.0,0.10536688]
[1704127652450,0.98251451,42818.0,42817.0,0.002]
[1704127652658,0.98251451,42818.0,42817.0,0.10536688]
[1704127652858,0.82911461,42818.0,42817.0,0.10536688]
[1704127654369,0.36202161,42818.0,42817.0,0.10536688]
[1704127654576,0.85211461,42818.0,42817.0,0.002]
[1704127654781,1.08533172,42818.0,42817.0,0.002]
[1704127662151,0.61823872,42818.0,42817.0,0.002]
[1704127662367,1.08533172,42818.0,42817.0,0.002]
[1704127665742,1.14104246,42818.0,42817.0,0.002]
[1704127667736,1.16893983,42818.0,42817.0,0.002]
[1704127669065,1.14124218,42818.0,42817.0,0.002]
[1704127669505,0.88502507,42818.0,42817.0,0.10536688]
[1704127670325,0.82911461,42818.0,42817.0,0.10536688]
[1704127670803,0.86175264,42818.0,42817.0,0.10536688]
[1704127670988,0.88503949,42818.0,42817.0,0.10536688]
[1704127671203,0.82911461,42818.0,42817.0,0.10536688]
[1704127671463,0.90803949,42818.0,42817.0,0.10536688]
[1704127671625,0.85211461,42818.0,42817.0,0.10536688]
[1704127672000,0.90803949,42818.0,42817.0,0.10536688]
[1704127673199,0.85211461,42818.0,42817.0,0.10536688]
[1704127673404,0.33873476,42818.0,42817.0,0.10536688]
[1704127673583,0.03873476,42818.0,42817.0,0.10536688]
[1704127673819,0.01,42818.0,42817.0,0.73187084]
[1704127674030,0.01,42818.0,42817.0,0.80897084]
[1704127674238,0.01,42818.0,42817.0,0.71568399]
[1704127674450,0.01,42818.0,42817.0,0.80897084]
[1704127674652,0.005,42818.0,42817.0,0.80797084]
[1704127675133,0.005,42818.0,42817.0,0.80897084]
[1704127675611,0.02815374,42821.0,42817.0,0.80797084]
[1704127675830,0.467029,42824.0,42823.0,0.10336688]
[1704127676045,0.767029,42824.0,42823.0,0.19665373]
[1704127676257,0.697029,42824.0,42823.0,0.19665373]
[1704127676469,0.697029,42824.0,42823.0,0.10336688]
[1704127676893,0.73264407,42824.0,42823.0,0.10436688]
[1704127678408,0.74064407,42824.0,42823.0,0.10536688]
[1704127679506,0.76393092,42824.0,42823.0,0.10536688]
[1704127680621,0.74064407,42824.0,42823.0,0.10536688]
[1704127680851,0.76393092,42824.0,42823.0,0.10536688]
[1704127681510,0.81987304,42824.0,42823.0,0.002]
[1704127681751,0.84287304,42824.0,42823.0,0.002]
[1704127681971,0.87053903,42824.0,42823.0,0.002]
[1704127682184,0.78693092,42824.0,42823.0,0.002]
[1704127682370,0.87078222,42824.0,42823.0,0.002]
[1704127683035,0.78693092,42824.0,42823.0,0.002]
[1704127683249,0.78693092,42824.0,42823.0,0.2533]
[1704127687923,0.78693092,42824.0,42823.0,0.35666688]
[1704127688629,0.76393092,42824.0,42823.0,0.35666688]
[1704127689914,0.74064407,42824.0,42823.0,0.35666688]
[1704127693304,0.34361507,42824.0,42823.0,0.35666688]
[1704127693535,0.81064407,42824.0,42823.0,0.35666688]
[1704127694167,0.83393092,42824.0,42823.0,0.35666688]
[1704127694773,0.80393092,42824.0,42823.0,0.35666688]
[1704127695400,0.78064407,42824.0,42823.0,0.35666688]
[1704127695621,0.31361507,42824.0,42823.0,0.35666688]
[1704127696456,0.78064407,42824.0,42823.0,0.35666688]
[1704127698217,0.78064407,42824.0,42823.0,0.44995373]
[1704127698431,0.78064407,42824.0,42823.0,0.35666688]
[1704127699351,0.51064407,42824.0,42823.0,0.35666688]
[1704127700201,0.51064407,42824.0,42823.0,0.44995373]
[1704127701042,0.51064407,42824.0,42823.0,0.35666688]
[1704127708460,0.53393092,42824.0,42823.0,0.35666688]
[1704127708929,0.51064407,42824.0,42823.0,0.35666688]
[1704127709151,0.04361507,42824.0,42823.0,0.35666688]
[1704127709650,0.04361507,42824.0,42823.0,0.40886688]
[1704127709870,0.04361507,42824.0,42823.0,0.35666688]
[1704127710567,0.03561507,42824.0,42823.0,0.40756688]
[1704127710788,0.04061507,42824.0,42823.0,0.35666688]
[1704127711724,0.03261507,42824.0,42823.0,0.35566688]
[1704127711946,0.03761507,42824.0,42823.0,0.35666688]
[1704127713063,0.67967368,42824.0,42823.0,0.35666688]
[1704127713700,0.67967368,42824.0,42823.0,0.002]
[1704127713701,1.23055198,42824.0,42823.0,0.002]
[1704127714123,1.6906841,42824.0,42823.0,0.002]
[1704127714562,2.61546925,42824.0,42823.0,0.002]
[1704127714796,2.47592965,42824.0,42823.0,0.002]
[1704127715232,2.61581062,42824.0,42823.0,0.002]
[1704127715453,2.47092965,42824.0,42823.0,0.001]
[1704127715881,0.06663312,42823.0,42818.0,0.10336688]
[1704127716111,0.08393495,42819.0,42818.0,0.10336688]
[1704127716322,0.5973038,42819.0,42818.0,0.10336688]
[1704127716987,0.57401695,42819.0,42818.0,0.10336688]
[1704127717232,0.467082,42819.0,42818.0,0.10336688]
[1704127717448,0.467082,42819.0,42818.0,0.19665373]
[1704127718552,0.467082,42819.0,42818.0,0.19865373]
[1704127719389,0.767082,42819.0,42818.0,0.19865373]
[1704127719863,0.767082,42819.0,42818.0,0.20065373]
[1704127720086,0.767082,42819.0,42818.0,0.09728685]
[1704127720323,1.02346152,42819.0,42818.0,0.09728685]
[1704127720592,1.28465695,42819.0,42818.0,0.004]
[1704127720801,1.14476536,42819.0,42818.0,0.004]
[1704127721234,1.16805221,42819.0,42818.0,0.002]
[1704127721667,1.17005221,42819.0,42818.0,0.002]
[1704127722082,1.16805221,42819.0,42818.0,0.002]
[1704127722294,1.17705221,42819.0,42812.0,0.2557]
[1704127722505,0.52071016,42813.0,42812.0,0.2557]
[1704127722714,0.52071016,42813.0,42812.0,0.10336688]
[1704127722715,0.54399701,42813.0,42812.0,0.10336688]
[1704127722941,0.86699701,42813.0,42812.0,0.10336688]
[1704127723380,0.81109724,42813.0,42812.0,0.10336688]
[1704127724467,0.78781039,42813.0,42812.0,0.10336688]
[1704127725625,0.78781039,42813.0,42812.0,0.19665373]
[1704127726253,0.78781039,42813.0,42812.0,0.19765373]
[1704127728601,0.78781039,42813.0,42812.0,0.10436688]
[1704127729899,0.81109724,42813.0,42812.0,0.10436688]
[1704127730349,0.76481039,42813.0,42812.0,0.10436688]
[1704127730789,0.767147,42813.0,42812.0,0.10436688]
[1704127731002,0.3,42813.0,42812.0,0.10436688]
[1704127731250,0.51845173,42813.0,42812.0,0.10436688]
[1704127731463,0.35130473,42813.0,42812.0,0.10436688]
[1704127732958,0.81845173,42813.0,42812.0,0.10436688]
[1704127734245,0.79516488,42813.0,42812.0,0.10436688]
[1704127734856,0.81845173,42813.0,42812.0,0.10436688]
[1704127735740,0.79516488,42813.0,42812.0,0.10436688]
[1704127736398,0.72516488,42813.0,42812.0,0.10436688]
[1704127736609,0.02764835,42819.0,42818.0,0.10336688]
[1704127736840,0.49473035,42819.0,42818.0,0.19665373]
[1704127737051,0.467082,42819.0,42818.0,0.19665373]
[1704127737260,0.19795846,42824.0,42821.0,0.10336688]
[1704127737473,0.023,42823.0,42821.0,0.19665373]
[1704127737683,0.023,42823.0,42822.0,0.34756688]
[1704127737890,0.023,42825.0,42822.0,0.10336688]
[1704127738115,0.467038,42823.0,42822.0,0.10336688]
[1704127738327,0.490038,42823.0,42822.0,0.10336688]
[1704127738540,0.790038,42823.0,42822.0,0.10336688]
[1704127739571,0.767038,42823.0,42822.0,0.10336688]
[1704127739779,0.776038,42823.0,42822.0,0.10336688]
[1704127740199,0.791038,42823.0,42822.0,0.10336688]
[1704127740627,0.491038,42823.0,42822.0,0.10336688]
[1704127741238,0.482038,42823.0,42822.0,0.10336688]
[1704127741657,0.490038,42823.0,42822.0,0.10336688]
[1704127742074,0.467038,42823.0,42822.0,0.10336688]
[1704127742278,0.473038,42823.0,42822.0,0.10336688]
[1704127743282,0.482038,42823.0,42822.0,0.10336688]
[1704127743706,0.473038,42823.0,42822.0,0.10336688]
[1704127743922,0.479038,42823.0,42822.0,0.10336688]
[1704127745153,0.50232485,42823.0,42822.0,0.10336688]
[1704127745452,0.66478278,42823.0,42822.0,0.10336688]
[1704127745657,0.502038,42823.0,42822.0,0.10336688]
[1704127747050,0.52532485,42823.0,42822.0,0.10336688]
[1704127751199,0.502038,42823.0,42822.0,0.10336688]
[1704127752043,0.52532485,42823.0,42822.0,0.10336688]
[1704127754200,0.502038,42823.0,42822.0,0.10336688]
[1704127754628,0.52532485,42823.0,42822.0,0.10336688]
[1704127755212,0.502038,42823.0,42822.0,0.10336688]
[1704127761251,0.502038,42823.0,42820.0,0.10336688]
[1704127761463,0.02328685,42822.0,42820.0,0.10336688]
[1704127761673,0.04628685,42822.0,42820.0,0.10336688]
[1704127761875,0.023,42822.0,42820.0,0.10336688]
[1704127762545,0.023,42822.0,42820.0,0.07]
[1704127762776,0.46706,42821.0,42820.0,0.10336688]
[1704127762982,0.49006,42821.0,42820.0,0.10336688]
[1704127763641,0.49006,42821.0,42820.0,0.07]
[1704127764072,0.49006,42821.0,42820.0,0.16328685]
[1704127764284,0.49006,42821.0,42820.0,0.16428685]
[1704127764711,0.49306,42821.0,42820.0,0.16428685]
[1704127765129,0.49306,42821.0,42820.0,0.071]
[1704127765588,0.49606,42821.0,42820.0,0.072]
[1704127765815,1.49633711,42821.0,42820.0,0.002]
[1704127766037,2.06003023,42821.0,42820.0,0.002]
[1704127766258,2.16716674,42821.0,42820.0,0.002]
[1704127766690,2.41370577,42821.0,42820.0,0.002]
[1704127766911,2.41070577,42821.0,42820.0,0.001]
[1704127767127,0.06663312,42819.0,42814.0,0.2643]
[1704127767388,0.06663312,42819.0,42813.0,0.10336688]
[1704127767389,0.80247124,42818.0,42813.0,0.10336688]
[1704127767618,0.467136,42814.0,42813.0,0.10336688]
[1704127767836,0.51342285,42814.0,42813.0,0.10336688]
[1704127768060,0.490136,42814.0,42813.0,0.10336688]
[1704127768682,0.491136,42814.0,42813.0,0.10336688]
[1704127769343,0.791136,42814.0,42810.0,0.07]
[1704127769569,0.467169,42811.0,42810.0,0.16328685]
[1704127769783,0.767169,42811.0,42810.0,0.07]
[1704127770019,0.767169,42811.0,42809.0,0.10336688]
[1704127770239,0.767169,42811.0,42810.0,0.07]
[1704127770689,0.79145585,42811.0,42810.0,0.071]
[1704127770899,0.79045585,42811.0,42810.0,0.07]
[1704127771334,0.79246685,42811.0,42810.0,0.071]
[1704127771551,0.79146685,42811.0,42810.0,0.071]
[1704127771779,0.76818,42811.0,42810.0,0.071]
[1704127772199,0.76918,42811.0,42810.0,0.072]
[1704127773104,0.79218,42811.0,42810.0,0.10536688]
[1704127776007,0.81546685,42811.0,42810.0,0.10536688]
[1704127776616,0.79218,42811.0,42810.0,0.10536688]
[1704127778421,0.81546685,42811.0,42810.0,0.10536688]
[1704127779183,0.302,42811.0,42810.0,0.10536688]
[1704127779389,0.302,42811.0,42810.0,0.17706688]
[1704127779390,0.002,42811.0,42810.0,0.17706688]
[1704127780009,0.002,42811.0,42810.0,0.10536688]
[1704127781456,0.002,42811.0,42810.0,0.26747373]
[1704127784246,0.002,42811.0,42810.0,0.25061373]
[1704127784449,0.002,42811.0,42810.0,0.19865373]
[1704127786414,0.002,42811.0,42810.0,0.10536688]
[1704127788106,0.002,42811.0,42810.0,0.19865373]
[1704127788517,0.469169,42811.0,42810.0,0.19865373]
[1704127788690,0.769169,42811.0,42810.0,0.19865373]
[1704127789105,0.769169,42811.0,42810.0,0.10536688]
[1704127792271,0.769169,42811.0,42810.0,0.15536688]
[1704127792906,0.769169,42811.0,42810.0,0.24865373]
[1704127793711,0.302,42811.0,42810.0,0.24865373]
[1704127793918,0.302,42811.0,42810.0,0.32737373]
[1704127794130,0.002,42811.0,42810.0,0.32737373]
[1704127796571,0.72738388,42815.0,42810.0,0.32737373]
[1704127796800,0.72738388,42815.0,42814.0,0.10336688]
[1704127797051,0.72738388,42815.0,42814.0,0.19665373]
[1704127797736,0.73038388,42815.0,42814.0,0.19665373]
[1704127797983,0.73338388,42815.0,42814.0,0.19665373]
[1704127798211,0.73038388,42815.0,42814.0,0.19665373]
[1704127799181,0.73338388,42815.0,42814.0,0.19665373]
[1704127802641,0.26625688,42815.0,42814.0,0.27177373]
[1704127802845,0.26625688,42815.0,42814.0,0.70499084]
[1704127802846,0.006,42815.0,42814.0,0.70499084]
[1704127803066,0.006,42815.0,42814.0,0.96349084]
[1704127803682,0.003,42815.0,42814.0,0.96349084]
[1704127803883,0.004,42815.0,42814.0,0.96449084]
[1704127804082,0.001,42815.0,42814.0,0.96449084]
[1704127804285,0.001,42815.0,42814.0,1.06749084]
[1704127804495,0.002,42815.0,42814.0,1.16343084]
[1704127805163,0.002,42815.0,42814.0,1.16243084]
[1704127805364,0.3,42821.0,42820.0,0.10336688]
[1704127805611,0.3,42821.0,42820.0,0.19665373]
[1704127806192,0.3,42821.0,42820.0,0.24609373]
[1704127807420,0.3,42821.0,42820.0,0.24709373]
[1704127808058,0.467021,42825.0,42824.0,0.10336688]
[1704127808299,0.02759686,42825.0,42824.0,0.19665373]
[1704127808509,0.46701,42826.0,42824.0,0.19665373]
[1704127808719,0.46701,42826.0,42822.0,0.32264]
[1704127808720,0.46701,42826.0,42825.0,0.19665373]
[1704127808932,0.76701,42826.0,42825.0,0.19665373]
[1704127809154,0.3,42826.0,42825.0,0.19665373]
[1704127809376,0.76701,42826.0,42825.0,0.19665373]
[1704127809818,0.76701,42826.0,42825.0,0.10336688]
[1704127810956,0.76701,42826.0,42825.0,0.37196688]
[1704127811396,0.77001,42826.0,42825.0,0.37196688]
[1704127814429,0.77001,42826.0,42825.0,0.10336688]
[1704127814654,0.3,42826.0,42825.0,0.10336688]
[1704127814850,0.46901,42826.0,42825.0,0.10336688]
[1704127815065,0.81629685,42826.0,42825.0,0.10336688]
[1704127815280,0.81529685,42826.0,42825.0,0.10336688]
[1704127815496,0.81529685,42826.0,42824.0,0.10336688]
[1704127815713,0.81330285,42825.0,42824.0,0.10336688]
[1704127816538,0.97246021,42825.0,42824.0,0.10336688]
[1704127816944,0.97246021,42825.0,42823.0,0.10336688]
[1704127817157,0.467027,42824.0,42819.0,0.2522]
[1704127817318,0.02328685,42823.0,42819.0,0.2522]
[1704127817522,0.02328685,42823.0,42822.0,0.07]
[1704127817726,0.51332485,42823.0,42822.0,0.10336688]
[1704127818307,0.81332485,42823.0,42819.0,0.2552]
[1704127818514,0.023,42822.0,42821.0,0.07]
[1704127818752,0.04628685,42822.0,42820.0,0.10336688]
[1704127818952,0.46706,42821.0,42820.0,0.10336688]
[1704127819151,0.18395127,42822.0,42821.0,0.10336688]
[1704127819360,0.48395127,42822.0,42821.0,0.10336688]
[1704127819565,0.323,42822.0,42821.0,0.10336688]
[1704127819989,0.326,42822.0,42821.0,0.10336688]
[1704127820388,0.023,42822.0,42821.0,0.10336688]
[1704127820616,0.490049,42822.0,42821.0,0.10336688]
[1704127820832,0.490049,42822.0,42821.0,0.10436688]
[1704127820833,0.793049,42822.0,42821.0,0.10436688]
[1704127821045,0.93629065,42822.0,42821.0,0.10436688]
[1704127821279,0.93629065,42822.0,42821.0,0.19765373]
[1704127821716,0.93629065,42822.0,42821.0,0.09428685]
[1704127821880,1.40333965,42822.0,42821.0,0.09428685]
[1704127822103,1.40333965,42822.0,42821.0,0.001]
[1704127822265,1.40633965,42822.0,42821.0,0.001]
[1704127822919,1.46225641,42822.0,42821.0,0.001]
[1704127823289,1.46225641,42822.0,42821.0,0.051]
[1704127823493,1.40633965,42822.0,42821.0,0.051]
[1704127824348,1.46225641,42822.0,42821.0,0.051]
[1704127825466,1.48554326,42822.0,42821.0,0.051]
[1704127828151,1.4296265,42822.0,42821.0,0.051]
[1704127829009,1.40633965,42822.0,42821.0,0.051]
[1704127829225,1.31504424,42822.0,42821.0,0.051]
[1704127830697,0.84799524,42822.0,42821.0,0.15436688]
[1704127830919,0.82499524,42822.0,42821.0,0.15436688]
[1704127831139,0.82499524,42822.0,42821.0,0.20698688]
[1704127831384,0.82499524,42822.0,42821.0,0.15436688]
[1704127832459,0.80170839,42822.0,42821.0,0.15436688]
[1704127833160,0.82499524,42822.0,42821.0,0.15436688]
[1704127835683,0.80170839,42822.0,42821.0,0.15436688]
[1704127836069,0.82499524,42822.0,42821.0,0.15436688]
[1704127836690,0.84799524,42822.0,42821.0,0.121]
[1704127837109,0.84799524,42822.0,42821.0,0.3842]
[1704127837320,0.84799524,42822.0,42821.0,0.41756688]
[1704127840688,0.903912,42822.0,42821.0,0.3842]
[1704127841125,0.903912,42822.0,42821.0,0.41756688]
[1704127842697,0.436863,42822.0,42821.0,0.41756688]
[1704127842920,0.903912,42822.0,42821.0,0.3842]
[1704127843143,0.903912,42822.0,42821.0,0.3142]
[1704127843370,1.370961,42822.0,42821.0,0.41756688]
[1704127845365,1.370961,42822.0,42821.0,0.3142]
[1704127846436,0.903912,42822.0,42821.0,0.3142]
[1704127846683,1.370961,42822.0,42821.0,0.3142]
[1704127847096,0.436863,42822.0,42821.0,0.3142]
[1704127847345,0.903912,42822.0,42821.0,0.3142]
[1704127847566,1.370961,42822.0,42821.0,0.3142]
[1704127848392,1.31504424,42822.0,42821.0,0.3142]
[1704127848612,1.31504424,42822.0,42821.0,0.41756688]
[1704127848853,1.37091322,42822.0,42821.0,0.41756688]
[1704127850446,1.37091322,42822.0,42821.0,0.46970688]
[1704127850447,0.82499524,42822.0,42821.0,0.46970688]
[1704127850656,0.35794624,42822.0,42821.0,0.46970688]
[1704127850866,0.82499524,42822.0,42821.0,0.41756688]
[1704127851081,0.82499524,42822.0,42821.0,0.3842]
[1704127851290,0.82499524,42822.0,42821.0,0.41756688]
[1704127851923,0.88086422,42822.0,42821.0,0.41756688]
[1704127852346,0.82499524,42822.0,42821.0,0.41756688]
[1704127853213,0.88086422,42822.0,42821.0,0.41756688]
[1704127854107,0.82499524,42822.0,42821.0,0.41756688]
[1704127854547,0.88086422,42822.0,42821.0,0.41756688]
[1704127855632,0.88087797,42822.0,42821.0,0.41756688]
[1704127856261,0.82499524,42822.0,42821.0,0.41756688]
[1704127856489,0.006,42822.0,42821.0,0.68728688]
[1704127856702,0.403021,42825.0,42821.0,1.02050399]
[1704127856960,0.403021,42825.0,42824.0,0.10336688]
[1704127857176,0.703021,42825.0,42824.0,0.10336688]
[1704127857386,0.703021,42825.0,42824.0,0.15898688]
[1704127858042,0.707021,42825.0,42824.0,0.10336688]
[1704127858501,0.711021,42825.0,42824.0,0.10436688]
[1704127859583,0.707021,42825.0,42824.0,0.19765373]
[1704127860001,0.711021,42825.0,42824.0,0.19865373]
[1704127863626,0.711021,42825.0,42824.0,0.10536688]
[1704127866067,0.711021,42825.0,42824.0,0.002]
[1704127866297,0.75730785,42825.0,42824.0,0.10536688]
[1704127867168,0.75730785,42825.0,42824.0,0.002]
[1704127867386,1.22432885,42825.0,42824.0,0.072]
[1704127867603,1.22432885,42825.0,42824.0,0.10536688]
[1704127868023,1.201042,42825.0,42824.0,0.10536688]
[1704127869915,1.30820399,42825.0,42824.0,0.002]
[1704127870135,1.30820399,42825.0,42824.0,0.10536688]
[1704127870348,1.33616238,42825.0,42824.0,0.10536688]
[1704127870575,1.3081398,42825.0,42824.0,0.10536688]
[1704127871055,1.22432885,42825.0,42824.0,0.10536688]
[1704127871275,1.28020726,42825.0,42824.0,0.10536688]
[1704127871496,1.28020649,42825.0,42824.0,0.10536688]
[1704127871964,1.3081398,42825.0,42824.0,0.10536688]
[1704127872277,1.26485295,42825.0,42824.0,0.10536688]
[1704127872934,1.2881398,42825.0,42824.0,0.10536688]
[1704127875597,1.26485295,42825.0,42824.0,0.10536688]
[1704127876002,1.41892181,42825.0,42824.0,0.10536688]
[1704127876228,1.41892181,42825.0,42824.0,0.002]
[1704127876852,1.41892181,42825.0,42824.0,0.10536688]
[1704127876853,1.26488408,42825.0,42824.0,0.10536688]
[1704127878264,1.28817093,42825.0,42824.0,0.10536688]
[1704127880088,0.41484208,42825.0,42824.0,0.10536688]
[1704127880317,0.85392993,42825.0,42824.0,0.10536688]
[1704127880528,1.34423778,42825.0,42824.0,0.10536688]
[1704127883837,0.82130785,42825.0,42824.0,0.10536688]
[1704127884694,1.34424077,42825.0,42824.0,0.10536688]
[1704127885747,1.34424077,42825.0,42824.0,0.002]
[1704127885748,1.49022645,42825.0,42824.0,0.002]
[1704127885952,1.43431453,42825.0,42824.0,0.002]
[1704127886380,1.51815661,42825.0,42824.0,0.002]
[1704127886590,1.05113561,42825.0,42824.0,0.002]
[1704127887716,1.51815661,42825.0,42824.0,0.002]
[1704127888370,1.43917463,42825.0,42824.0,0.002]
[1704127888559,1.90619063,42825.0,42824.0,0.002]
[1704127888818,1.3273411,42825.0,42824.0,0.002]
[1704127889044,1.7943621,42825.0,42824.0,0.002]
[1704127889473,1.7903621,42825.0,42824.0,0.001]
[1704127889897,1.7903621,42825.0,42821.0,0.05]
[1704127889898,1.7973621,42825.0,42821.0,0.05]
[1704127890114,0.60681786,42822.0,42821.0,0.05]
[1704127890369,0.94016631,42822.0,42821.0,0.05]
[1704127890581,1.07992328,42822.0,42821.0,0.05]
[1704127891232,0.94016631,42822.0,42821.0,0.05]
[1704127891418,1.07991505,42822.0,42821.0,0.05]
[1704127891628,1.07991505,42822.0,42821.0,0.15336688]
[1704127891829,1.07991505,42822.0,42821.0,0.05]
[1704127892465,1.68843986,42822.0,42821.0,0.05]
[1704127892871,1.69543986,42822.0,42821.0,0.05]
[1704127893113,0.76134186,42822.0,42821.0,0.05]
[1704127893700,1.69543986,42822.0,42821.0,0.05]
[1704127894947,1.56096405,42822.0,42821.0,0.05]
[1704127895137,1.56096405,42822.0,42821.0,0.3106]
[1704127895138,1.53305733,42822.0,42821.0,0.3106]
[1704127895378,1.42121531,42822.0,42821.0,0.3106]
[1704127895587,1.53307694,42822.0,42821.0,0.3106]
[1704127896003,1.06602794,42822.0,42821.0,0.3106]
[1704127896208,0.91123556,42822.0,42821.0,0.3106]
[1704127896413,0.88327095,42822.0,42821.0,0.3106]
[1704127896803,0.91123556,42822.0,42821.0,0.3106]
[1704127900613,1.0639235,42822.0,42821.0,0.3106]
[1704127900821,1.2179429,42822.0,42821.0,0.3106]
[1704127901029,0.98002379,42822.0,42821.0,0.3106]
[1704127901446,1.21826455,42822.0,42821.0,0.3106]
[1704127903318,1.13391391,42822.0,42821.0,0.3106]
[1704127903678,1.24571403,42822.0,42821.0,0.3106]
[1704127904084,1.71276303,42822.0,42821.0,0.3106]
[1704127904690,1.60096291,42822.0,42821.0,0.3106]
[1704127904878,1.71276546,42822.0,42821.0,0.3106]
[1704127905491,1.97392876,42822.0,42821.0,0.3106]
[1704127905698,1.97392876,42822.0,42821.0,0.05]
[1704127905699,2.03081314,42822.0,42821.0,0.05]
[1704127906101,1.83418002,42822.0,42821.0,0.05]
[1704127906904,1.68149208,42822.0,42821.0,0.05]
[1704127907076,1.21444308,42822.0,42821.0,0.05]
[1704127910800,1.68149208,42822.0,42821.0,0.05]
[1704127912304,0.09663312,42817.0,42811.0,0.10336688]
[1704127912523,0.05590831,42812.0,42811.0,0.10336688]
[1704127912742,0.56935251,42812.0,42811.0,0.10336688]
[1704127912950,0.86935251,42812.0,42811.0,0.10336688]
[1704127913403,0.86935251,42812.0,42806.0,0.05]
[1704127913404,1.87272117,42812.0,42806.0,0.10336688]
[1704127913625,0.05588772,42808.0,42806.0,0.10336688]
[1704127913801,0.3,42808.0,42807.0,0.2495]
[1704127914009,0.84609052,42808.0,42807.0,0.2495]
[1704127914221,0.87403358,42808.0,42807.0,0.2495]
[1704127914435,0.87399882,42808.0,42807.0,0.2495]
[1704127914889,0.87499882,42808.0,42807.0,0.2495]
[1704127915021,0.87399882,42808.0,42807.0,0.2495]